{"text_format":"1","workbook":"xlsx","n_sheets":2,"sheets":["Anweisungen und Einrichtung","Sep12"],"not_rendered":{"charts":0,"images":0,"macros":1,"external_links":1,"defined_names":13,"comments":0,"pivot_tables":0},"unopened":[],"bounds":{"document_bytes":16777216,"sheet_cells":100000,"rows_first":2000,"rows_last":500,"rows_between":2000,"halvings":0,"cell_chars":16384,"cell_head_chars":4096},"cells_cut":0,"cells_raw":0,"read":"whole","date_system":"1900"}

{"sheet":"Anweisungen und Einrichtung","index":0,"n_rows":23,"n_cols":9,"rows_kept":23,"cut":false,"hidden":false,"merged":[[3,2,3,4],[5,2,5,4],[7,2,7,4],[9,2,9,4],[3,7,3,8],[5,7,5,8],[7,7,7,8],[9,7,9,8],[11,7,11,8],[4,7,4,8],[6,7,6,8],[8,7,8,8],[10,7,10,8]]}
[]
[null,"Anweisungen und Einrichtung"]
[]
[null,1,"Geben Sie in der nachstehenden Tabelle \"Kurse\" die Namen der Kurse ein, die Sie mit dieser Planung nachverfolgen möchten.",null,null,null,5,"Geben Sie das Startdatum für Ihre Planung in Zelle A5 ein."]
[]
[null,2,"Ändern Sie in der nachstehenden Tabelle \"Aktivitäten\" die Beispielaktivitäten so, dass Sie Ihren Anforderungen entsprechen. ",null,null,null,6,"Verwenden Sie in Zeile 4 die Dropdownliste, um Ihre Kurse zur Planung hinzuzufügen. "]
[]
[null,3,"Legen Sie in Zelle I14 die Anzahl der Zeilen fest, die Sie für die Eingabe der täglichen Hausaufgaben benötigen.",null,null,null,7,"Fügen Sie unter jedem Kurs Ihre Aufgaben in der Spalte Aufgaben hinzu."]
[]
[null,4,"Führen Sie auf einem Planungsarbeitsblatt wie \"Sept12\" die Schritte 5 bis 9 aus.",null,null,null,8,"Geben Sie in den Spalten \"Stunden\" (erkennbar am Uhrensymbol) eine Schätzung der Zeit ein, die Sie für jede Aufgabe benötigen werden."]
[]
[null,null,null,null,null,null,9,"Wenn Sie die Aufgabe erledigt haben, doppelklicken Sie in die Spalte \"Erledigt\" (erkennbar am Häkchen) neben der Aufgabe."]
[]
[null,null,"Kurse",null,"Aktivitäten",null,null,"Anzahl der Zeilen für jeden Tag:",5]
[null,null,"Mathematik 101",null,"Diskussion"]
[null,null,"Englisch 105",null,"Praktische Übung"]
[null,null,"Französisch 103",null,"Vortrag"]
[null,null,"Physik 101",null,"Mündliche Prüfung"]
[null,null,"Geschichte 101",null,"Lesen"]
[null,null,null,null,"Nachbereitung"]
[null,null,null,null,"Forschungspapier"]
[null,null,null,null,"Hausaufgabe überprüfen"]
[null,null,null,null,"Studie"]

{"sheet":"Sep12","index":1,"n_rows":103,"n_cols":24,"rows_kept":103,"cut":false,"hidden":false,"merged":[]}
[]
[null,"Hausaufgaben"]
[]
[null,"Startdatum eingeben","Gesamt"," Kurs:",null,"Mathematik 101"," Kurs:",null,"Englisch 105"," Kurs:",null,"Französisch 103"," Kurs:",null,"Physik 101"," Kurs:",null,null," Kurs:",null,null," Kurs:"]
[null,"2011-09-12",null,null,null,"HAUSAUFGABE",null,null,"HAUSAUFGABE",null,null,"HAUSAUFGABE",null,null,"HAUSAUFGABE",null,null,"HAUSAUFGABE",null,null,"HAUSAUFGABE",null,null,"HAUSAUFGABE"]
[]
[null,{"$f":"ZeitplanTag","v":"2011-09-12"},{"$f":"SummenTäglicheStunden","v":6.5},1,1.5,"Lesen",1,2,"Studie",null,1,"Lesen",1,1,"Mündliche Prüfung"]
[null,{"$f":"ZeitplanTag","v":""},{"$f":"SummenTäglicheStunden","v":""},1,1,"Hausaufgabe überprüfen"]
[null,{"$f":"ZeitplanTag","v":""},{"$f":"SummenTäglicheStunden","v":""}]
[null,{"$f":"ZeitplanTag","v":""},{"$f":"SummenTäglicheStunden","v":""}]
[null,{"$f":"ZeitplanTag","v":""},{"$f":"SummenTäglicheStunden","v":""}]
[null,{"$f":"ZeitplanTag","v":"2011-09-13"},{"$f":"SummenTäglicheStunden","v":0}]
[null,{"$f":"ZeitplanTag","v":""},{"$f":"SummenTäglicheStunden","v":""}]
[null,{"$f":"ZeitplanTag","v":""},{"$f":"SummenTäglicheStunden","v":""}]
[null,{"$f":"ZeitplanTag","v":""},{"$f":"SummenTäglicheStunden","v":""}]
[null,{"$f":"ZeitplanTag","v":""},{"$f":"SummenTäglicheStunden","v":""}]
[null,{"$f":"ZeitplanTag","v":"2011-09-14"},{"$f":"SummenTäglicheStunden","v":0}]
[null,{"$f":"ZeitplanTag","v":""},{"$f":"SummenTäglicheStunden","v":""}]
[null,{"$f":"ZeitplanTag","v":""},{"$f":"SummenTäglicheStunden","v":""}]
[null,{"$f":"ZeitplanTag","v":""},{"$f":"SummenTäglicheStunden","v":""}]
[null,{"$f":"ZeitplanTag","v":""},{"$f":"SummenTäglicheStunden","v":""}]
[null,{"$f":"ZeitplanTag","v":"2011-09-15"},{"$f":"SummenTäglicheStunden","v":0}]
[null,{"$f":"ZeitplanTag","v":""},{"$f":"SummenTäglicheStunden","v":""}]
[null,{"$f":"ZeitplanTag","v":""},{"$f":"SummenTäglicheStunden","v":""}]
[null,{"$f":"ZeitplanTag","v":""},{"$f":"SummenTäglicheStunden","v":""}]
[null,{"$f":"ZeitplanTag","v":""},{"$f":"SummenTäglicheStunden","v":""}]
[null,{"$f":"ZeitplanTag","v":"2011-09-16"},{"$f":"SummenTäglicheStunden","v":0}]
[null,{"$f":"ZeitplanTag","v":""},{"$f":"SummenTäglicheStunden","v":""}]
[null,{"$f":"ZeitplanTag","v":""},{"$f":"SummenTäglicheStunden","v":""}]
[null,{"$f":"ZeitplanTag","v":""},{"$f":"SummenTäglicheStunden","v":""}]
[null,{"$f":"ZeitplanTag","v":""},{"$f":"SummenTäglicheStunden","v":""}]
[null,{"$f":"ZeitplanTag","v":"2011-09-17"},{"$f":"SummenTäglicheStunden","v":0}]
[null,{"$f":"ZeitplanTag","v":""},{"$f":"SummenTäglicheStunden","v":""}]
[null,{"$f":"ZeitplanTag","v":""},{"$f":"SummenTäglicheStunden","v":""}]
[null,{"$f":"ZeitplanTag","v":""},{"$f":"SummenTäglicheStunden","v":""}]
[null,{"$f":"ZeitplanTag","v":""},{"$f":"SummenTäglicheStunden","v":""}]
[null,{"$f":"ZeitplanTag","v":"2011-09-18"},{"$f":"SummenTäglicheStunden","v":0}]
[null,{"$f":"ZeitplanTag","v":""},{"$f":"SummenTäglicheStunden","v":""}]
[null,{"$f":"ZeitplanTag","v":""},{"$f":"SummenTäglicheStunden","v":""}]
[null,{"$f":"ZeitplanTag","v":""},{"$f":"SummenTäglicheStunden","v":""}]
[null,{"$f":"ZeitplanTag","v":""},{"$f":"SummenTäglicheStunden","v":""}]
[null,{"$f":"ZeitplanTag","v":""},{"$f":"SummenTäglicheStunden","v":""}]
[null,{"$f":"ZeitplanTag","v":""},{"$f":"SummenTäglicheStunden","v":""}]
[null,{"$f":"ZeitplanTag","v":""},{"$f":"SummenTäglicheStunden","v":""}]
[null,{"$f":"ZeitplanTag","v":""},{"$f":"SummenTäglicheStunden","v":""}]
[null,{"$f":"ZeitplanTag","v":""},{"$f":"SummenTäglicheStunden","v":""}]
[null,{"$f":"ZeitplanTag","v":""},{"$f":"SummenTäglicheStunden","v":""}]
[null,{"$f":"ZeitplanTag","v":""},{"$f":"SummenTäglicheStunden","v":""}]
[null,{"$f":"ZeitplanTag","v":""},{"$f":"SummenTäglicheStunden","v":""}]
[null,{"$f":"ZeitplanTag","v":""},{"$f":"SummenTäglicheStunden","v":""}]
[null,{"$f":"ZeitplanTag","v":""},{"$f":"SummenTäglicheStunden","v":""}]
[null,{"$f":"ZeitplanTag","v":""},{"$f":"SummenTäglicheStunden","v":""}]
[null,{"$f":"ZeitplanTag","v":""},{"$f":"SummenTäglicheStunden","v":""}]
[null,{"$f":"ZeitplanTag","v":""},{"$f":"SummenTäglicheStunden","v":""}]
[null,{"$f":"ZeitplanTag","v":""},{"$f":"SummenTäglicheStunden","v":""}]
[null,{"$f":"ZeitplanTag","v":""},{"$f":"SummenTäglicheStunden","v":""}]
[null,{"$f":"ZeitplanTag","v":""},{"$f":"SummenTäglicheStunden","v":""}]
[null,{"$f":"ZeitplanTag","v":""},{"$f":"SummenTäglicheStunden","v":""}]
[null,{"$f":"ZeitplanTag","v":""},{"$f":"SummenTäglicheStunden","v":""}]
[null,{"$f":"ZeitplanTag","v":""},{"$f":"SummenTäglicheStunden","v":""}]
[null,{"$f":"ZeitplanTag","v":""},{"$f":"SummenTäglicheStunden","v":""}]
[null,{"$f":"ZeitplanTag","v":""},{"$f":"SummenTäglicheStunden","v":""}]
[null,{"$f":"ZeitplanTag","v":""},{"$f":"SummenTäglicheStunden","v":""}]
[null,{"$f":"ZeitplanTag","v":""},{"$f":"SummenTäglicheStunden","v":""}]
[null,{"$f":"ZeitplanTag","v":""},{"$f":"SummenTäglicheStunden","v":""}]
[null,{"$f":"ZeitplanTag","v":""},{"$f":"SummenTäglicheStunden","v":""}]
[null,{"$f":"ZeitplanTag","v":""},{"$f":"SummenTäglicheStunden","v":""}]
[null,{"$f":"ZeitplanTag","v":""},{"$f":"SummenTäglicheStunden","v":""}]
[null,{"$f":"ZeitplanTag","v":""},{"$f":"SummenTäglicheStunden","v":""}]
[null,{"$f":"ZeitplanTag","v":""},{"$f":"SummenTäglicheStunden","v":""}]
[null,{"$f":"ZeitplanTag","v":""},{"$f":"SummenTäglicheStunden","v":""}]
[null,{"$f":"ZeitplanTag","v":""},{"$f":"SummenTäglicheStunden","v":""}]
[null,{"$f":"ZeitplanTag","v":""},{"$f":"SummenTäglicheStunden","v":""}]
[null,{"$f":"ZeitplanTag","v":""},{"$f":"SummenTäglicheStunden","v":""}]
[null,{"$f":"ZeitplanTag","v":""},{"$f":"SummenTäglicheStunden","v":""}]
[null,{"$f":"ZeitplanTag","v":""},{"$f":"SummenTäglicheStunden","v":""}]
[null,{"$f":"ZeitplanTag","v":""},{"$f":"SummenTäglicheStunden","v":""}]
[null,{"$f":"ZeitplanTag","v":""},{"$f":"SummenTäglicheStunden","v":""}]
[null,{"$f":"ZeitplanTag","v":""},{"$f":"SummenTäglicheStunden","v":""}]
[null,{"$f":"ZeitplanTag","v":""},{"$f":"SummenTäglicheStunden","v":""}]
[null,{"$f":"ZeitplanTag","v":""},{"$f":"SummenTäglicheStunden","v":""}]
[null,{"$f":"ZeitplanTag","v":""},{"$f":"SummenTäglicheStunden","v":""}]
[null,{"$f":"ZeitplanTag","v":""},{"$f":"SummenTäglicheStunden","v":""}]
[null,{"$f":"ZeitplanTag","v":""},{"$f":"SummenTäglicheStunden","v":""}]
[null,{"$f":"ZeitplanTag","v":""},{"$f":"SummenTäglicheStunden","v":""}]
[null,{"$f":"ZeitplanTag","v":""},{"$f":"SummenTäglicheStunden","v":""}]
[null,{"$f":"ZeitplanTag","v":""},{"$f":"SummenTäglicheStunden","v":""}]
[null,{"$f":"ZeitplanTag","v":""},{"$f":"SummenTäglicheStunden","v":""}]
[null,{"$f":"ZeitplanTag","v":""},{"$f":"SummenTäglicheStunden","v":""}]
[null,{"$f":"ZeitplanTag","v":""},{"$f":"SummenTäglicheStunden","v":""}]
[null,{"$f":"ZeitplanTag","v":""},{"$f":"SummenTäglicheStunden","v":""}]
[null,{"$f":"ZeitplanTag","v":""},{"$f":"SummenTäglicheStunden","v":""}]
[null,{"$f":"ZeitplanTag","v":""},{"$f":"SummenTäglicheStunden","v":""}]
[null,{"$f":"ZeitplanTag","v":""},{"$f":"SummenTäglicheStunden","v":""}]
[null,{"$f":"ZeitplanTag","v":""},{"$f":"SummenTäglicheStunden","v":""}]
[null,{"$f":"ZeitplanTag","v":""},{"$f":"SummenTäglicheStunden","v":""}]
[null,{"$f":"ZeitplanTag","v":""},{"$f":"SummenTäglicheStunden","v":""}]
[null,{"$f":"ZeitplanTag","v":""},{"$f":"SummenTäglicheStunden","v":""}]
[null,{"$f":"ZeitplanTag","v":""},{"$f":"SummenTäglicheStunden","v":""}]
[null,{"$f":"ZeitplanTag","v":""},{"$f":"SummenTäglicheStunden","v":""}]
[null,{"$f":"ZeitplanTag","v":""},{"$f":"SummenTäglicheStunden","v":""}]
[null,{"$f":"ZeitplanTag","v":""},{"$f":"SummenTäglicheStunden","v":""}]
[null,{"$f":"ZeitplanTag","v":""},{"$f":"SummenTäglicheStunden","v":""}]